bitfinex-derivatives/quotes_ETHF0:USTF0_20240901
["timestamp","ask_amount","ask_price","bid_price","bid_amount"]
[1725165205905,0.24093,2490.4,2490.3,0.854]
[1725165209329,2.03202,2490.5,2490.3,2.014]
[1725165211120,1.7911,2490.5,2490.3,2.014]
[1725165211521,2.03202,2490.5,2490.3,2.014]
[1725165211718,1.10552,2490.5,2490.3,2.014]
[1725165212017,1.10552,2490.5,2490.3,2.918]
[1725165213025,3.2078,2490.7,2490.3,2.918]
[1725165213026,3.2078,2490.7,2490.4,1.16]
[1725165213219,0.9186,2490.8,2490.6,1.16]
[1725165213422,0.9186,2490.8,2490.7,1.8708]
[1725165215219,0.9186,2490.8,2490.4,3.2078]
[1725165215420,0.24091,2490.7,2490.4,5.301]
[1725165215634,0.2409,2490.7,2490.4,5.301]
[1725165215930,1.10451,2490.6,2490.4,5.301]
[1725165216526,0.8636,2490.6,2490.4,5.301]
[1725165217633,0.24092,2490.5,2490.4,5.301]
[1725165217828,1.17652,2490.5,2490.4,5.301]
[1725165218723,1.17652,2490.5,2490.4,4.3678]
[1725165219522,0.24095,2490.2,2490.1,3.2078]
[1725165219927,0.24095,2490.2,2490.0,1.16]
[1725165220122,0.24095,2490.3,2490.0,2.0586]
[1725165220420,0.24095,2490.3,2490.1,1.16]
[1725165220919,1.12715,2490.3,2490.2,0.9314]
[1725165224027,0.8862,2490.3,2490.2,0.9314]
[1725165225317,0.935,2490.4,2490.2,0.9314]
[1725165225525,0.24093,2490.4,2490.2,1.7792]
[1725165225726,1.7509,2490.3,2490.2,1.7792]
[1725165225926,1.99184,2490.3,2490.2,0.9314]
[1725165227129,1.7509,2490.3,2490.2,0.9314]
[1725165228330,0.9041,2490.3,2490.2,0.9314]
[1725165228534,1.15762,2490.6,2490.2,4.9474]
[1725165228734,1.15762,2490.6,2490.4,1.16]
[1725165229629,1.15762,2490.6,2490.5,0.9118]
[1725165230134,0.9167,2490.6,2490.5,0.9118]
[1725165230333,4.37331,2490.7,2490.5,1.7803]
[1725165230533,4.1324,2490.7,2490.5,1.7803]
[1725165230834,0.9246,2490.7,2490.5,1.7803]
[1725165234632,1.1324,2490.8,2490.5,2.9403]
[1725165236948,0.8915,2490.8,2490.5,2.9403]
[1725165238948,0.8915,2490.8,2490.5,6.1481]
[1725165240546,0.8915,2490.8,2490.5,2.9403]
[1725165240851,0.8915,2490.8,2490.7,3.2078]
[1725165242747,1.11688,2491.0,2490.7,3.2078]
[1725165243145,0.8515,2491.1,2490.9,1.16]
[1725165243360,0.8515,2491.1,2491.0,0.8694]
[1725165244344,1.15495,2491.3,2491.0,0.8694]
[1725165244541,2.00645,2491.3,2491.0,0.8694]
[1725165244855,2.00645,2491.3,2491.1,0.9096]
[1725165245054,0.24085,2491.2,2491.1,0.9096]
[1725165248357,2.00645,2491.3,2491.1,0.9096]
[1725165248656,0.24085,2491.2,2491.1,0.9096]
[1725165250155,2.00645,2491.3,2491.1,0.9096]
[1725165251356,2.00645,2491.3,2491.1,2.0696]
[1725165252155,0.24085,2491.3,2491.1,2.0696]
[1725165252658,0.24085,2491.2,2491.1,2.0696]
[1725165253856,0.24085,2491.2,2491.1,1.16]
[1725165254557,0.24085,2491.2,2490.9,1.16]
[1725165254752,1.7528,2491.1,2490.9,1.16]
[1725165255657,1.99367,2491.1,2490.9,1.16]
[1725165256249,1.7528,2491.1,2490.7,3.2078]
[1725165256456,5.15390742,2491.0,2490.6,4.13987184]
[1725165256653,0.2409,2490.7,2490.6,4.13987184]
[1725165256853,4.2561,2490.7,2490.6,4.13987184]
[1725165257559,4.2561,2490.7,2490.6,0.00602967]
[1725165258154,5.1194,2490.7,2490.6,0.00602967]
[1725165262558,8.3272,2490.7,2490.6,0.00602967]
[1725165264564,5.1194,2490.7,2490.6,0.00602967]
[1725165266656,9.72444924,2490.7,2490.6,0.00602967]
[1725165268167,15.72444924,2490.7,2490.6,0.00602967]
[1725165268663,9.72444924,2490.7,2490.6,0.00602967]
[1725165269163,18.93224924,2490.7,2490.6,0.00602967]
[1725165269363,12.93224924,2490.7,2490.6,0.00602967]
[1725165269564,18.93224924,2490.7,2490.6,0.00602967]
[1725165270668,12.93224924,2490.7,2490.6,0.00602967]
[1725165270861,18.93224924,2490.7,2490.6,0.00602967]
[1725165271067,9.72444924,2490.7,2490.6,0.00602967]
[1725165271466,12.93224924,2490.7,2490.6,0.00602967]
[1725165272563,9.72444924,2490.7,2490.6,0.00602967]
[1725165272770,12.93224924,2490.7,2490.6,0.00602967]
[1725165277667,9.72444924,2490.7,2490.6,0.00602967]
[1725165277975,12.93224924,2490.7,2490.6,0.00602967]
[1725165278469,9.72444924,2490.7,2490.6,0.00602967]
[1725165281665,4.60504924,2490.7,2490.6,0.00602967]
[1725165281873,0.2409,2490.7,2490.6,0.00602967]
[1725165282069,0.2409,2490.7,2490.6,0.94022967]
[1725165282882,0.2409,2490.8,2490.6,0.94022967]
[1725165287077,0.2409,2490.7,2490.6,0.94022967]
[1725165287386,4.49770056,2490.7,2490.6,0.94022967]
[1725165287884,0.2409,2490.7,2490.6,0.94022967]
[1725165293499,3.2078,2491.0,2490.6,0.94022967]
[1725165293895,4.54432456,2490.9,2490.6,0.94022967]
[1725165294995,0.24089,2490.8,2490.6,0.94022967]
[1725165295503,4.36943638,2490.7,2490.6,0.94022967]
[1725165299202,4.61033638,2490.7,2490.6,0.94022967]
[1725165299596,4.61033638,2490.7,2490.6,2.10022967]
[1725165299597,4.36943638,2490.7,2490.6,2.10022967]
[1725165299799,0.24088,2491.0,2490.6,6.11542967]
[1725165300007,0.24088,2491.0,2490.6,2.10022967]
[1725165301100,1.858,2491.1,2490.6,2.10022967]
[1725165301101,2.09887,2491.1,2490.6,2.10022967]
[1725165301607,4.58793553,2491.0,2490.6,2.10022967]
[1725165302412,4.58793553,2491.0,2490.6,2.34113967]
[1725165303304,4.58793553,2491.0,2490.6,2.10022967]
[1725165304204,1.17117,2491.1,2490.6,2.10022967]
[1725165304397,1.17117,2491.1,2490.6,2.34113967]
[1725165305414,0.24087,2491.1,2490.6,2.34113967]
[1725165306207,0.24087,2491.1,2490.8,1.16]
[1725165306403,0.24087,2491.1,2490.9,0.9152]
[1725165306605,0.24087,2491.1,2491.0,0.8729]
[1725165307010,0.9283,2491.3,2490.9,0.8814]
[1725165307011,0.24087,2491.0,2490.9,0.8814]
[1725165307405,0.24087,2491.1,2490.9,0.8814]
[1725165309807,0.24087,2491.1,2490.9,1.757]
[1725165310106,0.24088,2490.9,2490.8,0.8729]
[1725165310610,0.24088,2491.0,2490.8,0.8729]
[1725165310815,0.8927,2490.9,2490.8,0.8729]
[1725165311006,1.7727,2490.9,2490.8,0.8729]
[1725165311312,1.7727,2490.9,2490.6,1.16602967]
[1725165311612,0.2409,2490.8,2490.6,0.00602967]
[1725165313506,1.7727,2490.9,2490.6,1.16602967]
[1725165315018,2.01358,2490.9,2490.6,1.16602967]
[1725165315213,1.7727,2490.9,2490.6,1.16602967]
[1725165316013,2.01358,2490.9,2490.6,1.16602967]
[1725165317422,1.13358,2490.9,2490.6,1.16602967]
[1725165323220,0.24085,2491.3,2490.8,4.60869]
[1725165323520,0.24086,2491.2,2490.9,2.613]
[1725165324522,1.7295,2491.3,2490.9,2.613]
[1725165324718,0.8547,2491.3,2491.1,1.16]
[1725165325130,0.8547,2491.3,2491.2,0.8646]
[1725165326026,3.44864,2491.4,2491.2,0.8646]
[1725165326725,3.2078,2491.4,2491.3,1.7622]
[1725165327228,1.13611,2491.7,2491.3,5.7758]
[1725165327416,1.13611,2491.7,2491.3,1.7622]
[1725165327922,0.24082,2491.6,2491.3,1.7622]
[1725165328313,0.9032,2491.5,2491.3,1.7622]
[1725165328724,0.9032,2491.5,2491.3,5.7758]
[1725165329133,0.9032,2491.5,2491.3,0.8479]
[1725165329426,0.8792,2491.4,2491.3,0.8479]
[1725165331415,0.8792,2491.4,2491.2,2.0246]
[1725165331817,1.12004,2491.4,2491.2,2.0246]
[1725165332026,0.8792,2491.4,2490.8,7.34164217]
[1725165332226,0.24086,2491.2,2490.9,0.8989]
[1725165332618,0.9184,2491.1,2490.9,0.8989]
[1725165332828,0.8999,2491.0,2490.9,0.8989]
[1725165334329,0.9184,2491.1,2490.9,0.8989]
[1725165334524,0.9184,2491.1,2491.0,1.16]
[1725165335434,0.24086,2491.2,2491.0,1.16]
[1725165335823,4.66784559,2491.2,2491.0,1.16]
[1725165338935,4.42698559,2491.2,2491.0,1.16]
[1725165343629,2.00265,2491.3,2491.0,1.16]
[1725165343834,1.14074,2491.4,2491.0,5.1744]
[1725165344035,1.14074,2491.4,2491.0,1.16]
[1725165344439,0.9324,2491.3,2491.0,1.16]
[1725165345826,0.24086,2491.2,2490.9,0.8989]
[1725165346131,0.24086,2491.2,2490.9,2.0589]
[1725165346132,0.866,2491.2,2490.9,2.0589]
[1725165346833,4.8804,2491.2,2490.6,0.00602967]
[1725165347133,0.24089,2490.9,2490.6,0.88512967]
[1725165347731,1.8288,2490.8,2490.6,0.88512967]
[1725165347932,2.9248,2490.8,2490.6,0.88512967]
[1725165348128,2.6839,2490.8,2490.6,0.88512967]
[1725165350436,0.9138,2490.8,2490.7,1.16]
[1725165351342,0.9138,2490.8,2490.6,0.88512967]
[1725165351542,0.9138,2490.8,2490.6,2.04512967]
[1725165352145,0.9138,2490.8,2490.6,0.88512967]
[1725165352433,0.9138,2490.8,2490.6,2.04512967]
[1725165354628,0.8671,2490.7,2490.6,2.04512967]
[1725165355038,1.108,2490.7,2490.6,0.00602967]
[1725165358347,0.8671,2490.7,2490.6,0.00602967]
[1725165359333,1.108,2490.7,2490.6,0.00602967]
[1725165360144,5.1232,2490.7,2490.6,0.00602967]
[1725165361343,9.47498739,2490.7,2490.6,0.00602967]
[1725165368036,5.21888739,2490.7,2490.6,0.00602967]
[1725165368543,5.21888739,2490.7,2490.6,0.85072967]
[1725165368748,5.21888739,2490.7,2490.6,1.76392967]
[1725165369139,9.23408739,2490.7,2490.6,1.76392967]
[1725165369339,5.21888739,2490.7,2490.6,1.76392967]
[1725165370149,9.23408739,2490.7,2490.6,1.76392967]
[1725165370441,9.47498739,2490.7,2490.6,0.00602967]
[1725165379149,5.45978739,2490.7,2490.6,0.00602967]
[1725165379446,9.47498739,2490.7,2490.6,0.00602967]
[1725165385857,5.45978739,2490.7,2490.6,0.00602967]
[1725165386458,9.47498739,2490.7,2490.6,0.00602967]
[1725165386859,5.45978739,2490.7,2490.6,0.00602967]
[1725165387157,9.47498739,2490.7,2490.6,0.00602967]
[1725165387357,5.45978739,2490.7,2490.6,0.00602967]
[1725165387651,9.47498739,2490.7,2490.6,0.00602967]
[1725165388060,5.45978739,2490.7,2490.6,0.00602967]
[1725165388364,4.59268739,2490.7,2490.6,0.00602967]
[1725165391467,4.35178739,2490.7,2490.6,0.00602967]
[1725165391761,0.9176,2491.0,2490.6,0.00602967]
[1725165392153,4.52752851,2490.9,2490.6,0.00602967]
[1725165395562,1.15848,2491.0,2490.6,0.00602967]
[1725165397660,0.9176,2491.0,2490.6,0.00602967]
[1725165397870,0.9176,2491.0,2490.6,0.91592967]
[1725165398070,1.15848,2491.0,2490.6,0.91592967]
[1725165399971,2.29477,2491.1,2490.6,0.91592967]
[1725165401563,0.16461839,2491.0,2490.6,0.91592967]
[1725165401762,2.29477,2491.1,2490.6,0.91592967]
[1725165401958,0.1646187,2491.0,2490.6,0.91592967]
[1725165402163,2.29477,2491.1,2490.6,0.91592967]
[1725165402368,0.16461885,2491.0,2490.6,0.91592967]
[1725165402558,0.8939,2491.1,2490.6,2.07592967]
[1725165402758,0.8939,2491.1,2490.6,2.31683967]
[1725165403374,0.8797,2491.3,2490.6,2.07592967]
[1725165403670,2.0472,2491.4,2490.9,0.24088]
[1725165403671,1.8087,2491.4,2490.9,0.24088]
[1725165403966,0.9215,2491.4,2491.0,2.6964]
[1725165410174,1.16234,2491.4,2491.0,2.6964]
[1725165410877,0.9099,2491.3,2491.0,2.6964]
[1725165418183,0.9099,2491.3,2491.0,5.9042]
[1725165419176,0.9099,2491.3,2491.0,2.6964]
[1725165419382,0.9099,2491.3,2491.0,5.9042]
[1725165419703,0.24081,2491.7,2491.1,0.24086]
[1725165419872,1.688,2491.9,2491.4,1.16]
[1725165420185,1.688,2491.9,2491.5,0.8699]
[1725165420186,4.25388897,2491.6,2491.5,0.8699]
[1725165420482,1.40081,2491.7,2491.5,0.8699]
[1725165420679,0.8252,2491.6,2491.5,0.8699]
[1725165420880,5.05495202,2491.6,2491.5,0.8699]
[1725165421677,4.22975202,2491.6,2491.5,0.8699]
[1725165421979,0.8252,2491.8,2491.5,4.8835]
[1725165422173,0.8252,2491.8,2491.6,0.8657]
[1725165422367,1.9839,2491.9,2491.6,0.8657]
[1725165423377,0.8239,2491.9,2491.6,0.8657]
[1725165426979,1.06469,2491.9,2491.6,0.8657]
[1725165427195,0.8239,2491.9,2491.6,0.8657]
[1725165427385,1.06469,2491.9,2491.6,0.8657]
[1725165428590,0.8239,2491.9,2491.6,0.8657]
[1725165429475,1.06469,2491.9,2491.6,0.8657]
[1725165429690,0.8239,2491.9,2491.6,0.8657]
[1725165431588,1.06469,2491.9,2491.6,0.8657]
[1725165434497,0.2408,2491.8,2491.6,0.8657]
[1725165435989,0.24083,2491.5,2491.3,3.2078]
[1725165436191,0.24084,2491.4,2491.2,1.6254]
[1725165436596,1.08703,2491.5,2491.2,1.6254]
[1725165436990,5.38741664,2491.5,2491.2,1.6254]
[1725165437588,5.38741664,2491.5,2491.2,4.8332]
[1725165440698,5.38741664,2491.5,2491.2,1.6254]
[1725165440894,5.38741664,2491.5,2491.2,4.8332]
[1725165441389,1.09774,2491.4,2491.2,4.8332]
[1725165441592,0.8569,2491.4,2491.2,4.8332]
[1725165442992,1.09774,2491.4,2491.2,4.8332]
[1725165444105,1.09774,2491.4,2491.2,1.6254]
[1725165444402,1.09774,2491.4,2491.2,4.8332]
[1725165444703,0.8569,2491.4,2491.2,4.8332]
[1725165446594,0.8569,2491.4,2491.2,1.6254]
[1725165446794,0.8569,2491.4,2491.2,4.8332]
[1725165449402,1.09774,2491.4,2491.2,4.8332]
[1725165449711,0.24085,2491.3,2491.2,1.6254]
[1725165449898,1.09774,2491.4,2491.2,1.6254]
[1725165450794,4.26537665,2491.3,2491.2,1.6254]
[1725165457196,4.50622665,2491.3,2491.2,1.6254]
[1725165457598,4.26537665,2491.3,2491.2,1.6254]
[1725165460603,0.24084,2491.4,2491.2,1.6254]
[1725165471117,0.24085,2491.3,2491.2,1.6254]
[1725165473111,8.43650436,2491.3,2490.9,3.2078]
[1725165473314,0.24086,2491.1,2491.0,0.8017]
[1725165473508,4.42210436,2491.3,2490.8,3.2078]
[1725165473509,5.58210436,2491.3,2490.8,3.2078]
[1725165473714,5.58210436,2491.3,2490.7,1.5893]
[1725165473715,0.7949,2491.0,2490.7,1.5893]
[1725165473909,0.24088,2490.9,2490.7,1.5893]
[1725165474217,4.58836787,2490.9,2490.7,1.5893]
[1725165479021,0.24089,2490.8,2490.7,1.5893]
[1725165481209,4.58837787,2490.9,2490.7,1.5893]
[1725165483823,1.03578,2491.0,2490.7,1.5893]
[1725165485117,1.03578,2491.0,2490.7,5.6037]
[1725165485717,1.03578,2491.0,2490.7,1.5893]
[1725165486626,1.03578,2491.0,2490.7,5.6037]
[1725165487616,1.03578,2491.0,2490.7,1.5893]
[1725165487825,1.03578,2491.0,2490.7,5.6037]
[1725165488011,1.03578,2491.0,2490.7,1.5893]
[1725165488320,1.03578,2491.0,2490.8,3.2078]
[1725165488722,0.7949,2491.0,2490.8,4.3678]
[1725165488920,0.24087,2491.1,2490.8,4.748]
[1725165490324,0.3907,2491.3,2491.0,1.16]
[1725165490520,0.3907,2491.3,2491.1,0.7626]
[1725165490926,0.24083,2491.5,2491.1,0.7626]
[1725165491223,0.63153,2491.5,2491.1,0.7626]
[1725165491425,0.24084,2491.4,2491.1,0.7626]
[1725165492124,0.63153,2491.5,2491.1,1.00346]
[1725165492526,0.24084,2491.4,2491.1,0.7626]
[1725165492830,0.3907,2491.5,2491.1,0.7626]
[1725165492831,0.24085,2491.3,2491.1,0.7626]
[1725165500134,0.24084,2491.4,2491.1,0.7626]
[1725165500336,0.3907,2491.5,2491.2,3.2078]
[1725165500627,0.63153,2491.5,2491.2,3.2078]
[1725165502025,0.63153,2491.5,2491.1,2.16346]
[1725165502324,0.63153,2491.5,2491.2,3.2078]
[1725165502534,0.24084,2491.4,2491.2,3.2078]
[1725165506436,0.63153,2491.5,2491.2,3.2078]
[1725165506933,0.63153,2491.5,2491.1,0.7626]
[1725165507135,0.63153,2491.5,2491.2,3.2078]
[1725165508538,0.24083,2491.5,2491.3,0.3718]
[1725165508926,0.24083,2491.5,2491.4,0.3689]
[1725165514141,9.50508553,2491.5,2491.1,0.3881]
[1725165514338,0.24085,2491.3,2491.1,0.3881]
[1725165514748,0.24085,2491.2,2490.9,0.367]
[1725165515040,0.24086,2491.2,2490.9,0.741]
[1725165515434,4.67473133,2491.3,2490.9,0.741]
[1725165515435,0.24087,2491.1,2490.9,0.741]
[1725165515749,0.3661,2491.0,2490.9,0.741]
[1725165516235,0.3661,2491.0,2490.9,4.7554]
[1725165516631,0.60697,2491.0,2490.9,4.7554]
[1725165516938,0.3661,2491.0,2490.9,0.741]
[1725165518240,0.60697,2491.0,2490.9,0.741]
[1725165518642,0.3661,2491.0,2490.9,0.741]
[1725165518939,0.60697,2491.0,2490.9,0.741]
[1725165519245,0.3661,2491.0,2490.9,0.741]
[1725165525545,0.60697,2491.0,2490.9,0.741]
[1725165526744,0.3661,2491.0,2490.9,0.741]
[1725165535551,0.60697,2491.0,2490.9,0.741]
[1725165565668,0.24086,2491.2,2490.9,0.741]
[1725165565873,0.24087,2491.0,2490.9,0.741]
[1725165567177,0.24087,2491.0,2490.6,0.39312967]
[1725165567178,0.2409,2490.8,2490.6,0.00602967]
[1725165567474,0.59899,2490.9,2490.7,0.7651]
[1725165572365,0.24089,2490.8,2490.7,0.7651]
[1725165572766,0.59899,2490.9,2490.7,0.7651]
[1725165595092,0.3581,2490.9,2490.7,0.7651]
[1725165595682,0.59899,2490.9,2490.7,0.7651]
[1725165597786,0.24089,2490.8,2490.7,0.7651]
[1725165601091,4.72895212,2490.8,2490.7,0.7651]
[1725165603295,0.2409,2490.7,2490.6,0.00602967]
[1725165603495,1.4009,2490.7,2490.6,0.00602967]
[1725165607314,1.4009,2490.7,2490.1,1.40816005]
[1725165607315,0.24095,2490.2,2490.1,1.40816005]
[1725165607498,1.16,2490.2,2490.1,0.3864]
[1725165607694,12.92433172,2490.2,2490.0,5.54789905]
[1725165607897,0.61016,2490.1,2490.0,5.54789905]
[1725165608299,9.16669172,2490.1,2490.0,5.54789905]
[1725165609209,5.15069172,2490.1,2490.0,5.54789905]
[1725165609393,9.16669172,2490.1,2490.0,5.54789905]
[1725165610206,5.15069172,2490.1,2490.0,5.54789905]
[1725165611796,5.15069172,2490.1,2490.0,9.56389905]
[1725165611797,4.54053172,2490.1,2490.0,9.56389905]
[1725165611997,3.2078,2490.9,2490.0,17.10999905]
[1725165612200,3.2078,2490.9,2490.5,4.3678]
[1725165612399,7.48613317,2490.9,2490.5,3.2078]
[1725165612612,3.44869,2490.9,2490.5,3.2078]
[1725165613413,3.44869,2490.9,2490.5,3.5791]
[1725165613909,0.24089,2490.9,2490.5,0.3713]
[1725165614510,0.24089,2490.8,2490.5,0.3713]
[1725165615004,0.24089,2490.8,2490.6,0.7816]
[1725165616509,4.73665432,2490.9,2490.6,0.7816]
[1725165616814,1.40088,2491.0,2490.6,0.7816]
[1725165617608,0.24089,2490.9,2490.6,0.7816]
[1725165617811,0.24089,2490.8,2490.6,0.7816]
[1725165618008,1.16,2491.0,2490.6,0.7816]
[1725165618513,0.2409,2490.7,2490.6,0.7816]
[1725165621114,0.24092,2490.5,2490.4,3.2078]
[1725165621812,0.24092,2490.5,2490.3,0.7491]
[1725165622211,0.24092,2490.6,2490.3,0.7491]
[1725165623818,4.69284058,2490.7,2490.3,0.7491]
[1725165623819,0.24092,2490.5,2490.3,0.7491]
[1725165624114,0.24092,2490.6,2490.3,0.7491]
[1725165624318,4.33514058,2490.7,2490.4,1.16]
[1725165624517,0.2409,2490.8,2490.5,0.3663]
[1725165633230,0.3605,2490.9,2490.5,0.3663]
[1725165633418,0.3605,2490.9,2490.5,0.60722]
[1725165634423,0.3605,2490.9,2490.5,3.81502]
[1725165635126,0.24088,2491.0,2490.5,3.81502]
[1725165637528,0.24088,2491.0,2490.5,0.60722]
[1725165637726,0.24088,2491.0,2490.5,3.81502]
[1725165638324,0.24088,2491.0,2490.5,0.60722]
[1725165638526,0.24088,2491.0,2490.5,3.81502]
[1725165639622,0.24088,2491.0,2490.5,0.60722]
[1725165639822,0.24088,2491.0,2490.5,3.81502]
[1725165640625,0.61036,2491.1,2490.5,0.3663]
[1725165640829,1.77036,2491.1,2490.5,3.5741]
[1725165641635,1.77036,2491.1,2490.6,0.24091]
[1725165641929,1.77036,2491.1,2490.7,0.3689]
[1725165642229,1.77036,2491.1,2490.7,0.6098]
[1725165642425,1.77036,2491.1,2490.8,0.3568]
[1725165643629,0.24087,2491.0,2490.8,0.3568]
[1725165646635,1.77037,2491.1,2490.8,0.3568]
[1725165648227,0.24088,2491.0,2490.8,0.3568]
[1725165648624,0.3906,2490.9,2490.8,0.3568]
[1725165649333,0.63148,2490.9,2490.7,0.3689]
[1725165649520,0.24089,2490.8,2490.6,3.5883]
[1725165649727,0.3722,2490.7,2490.6,3.5883]
[1725165650338,0.3722,2490.7,2490.6,7.6035]
[1725165650833,0.3722,2490.7,2490.6,4.3957]
[1725165651033,0.6131,2490.7,2490.6,0.3805]
[1725165652227,0.6131,2490.7,2490.3,4.13384217]
[1725165652228,8.7552,2490.7,2490.3,4.13384217]
[1725165652432,0.24093,2490.4,2490.3,4.13384217]
[1725165652627,0.24093,2490.4,2490.2,0.3593]
[1725165652827,0.7237,2490.3,2490.2,0.3593]
[1725165653930,0.96464,2490.3,2490.2,0.3593]
[1725165654433,0.7237,2490.3,2490.2,0.3593]
[1725165655832,0.96464,2490.3,2490.2,0.3593]
[1725165658830,0.7237,2490.3,2490.2,0.3593]
[1725165659030,0.96464,2490.3,2490.2,0.3593]
[1725165659837,0.7237,2490.3,2490.2,0.3593]
[1725165661336,0.3683,2490.3,2490.2,0.3593]
[1725165664733,0.3683,2490.3,2490.1,0.3603]
[1725165664942,0.381,2490.2,2490.1,0.3603]
[1725165665150,0.62195,2490.2,2490.1,0.3603]
[1725165665437,0.62195,2490.2,2490.0,8.76859905]
[1725165665438,0.97555,2490.2,2490.0,8.76859905]
[1725165668343,0.97555,2490.2,2490.0,5.56079905]
[1725165668549,0.97555,2490.2,2490.0,8.76859905]
[1725165670545,0.24096,2490.1,2490.0,8.39679905]
[1725165671445,4.25696,2490.1,2490.0,8.39679905]
[1725165671949,8.66748431,2490.1,2490.0,8.39679905]
[1725165672148,4.65148431,2490.1,2490.0,8.39679905]
[1725165672339,8.66748431,2490.1,2490.0,8.39679905]
[1725165672547,0.24098,2489.9,2489.8,0.00602967]
[1725165672740,1.40098,2489.9,2489.8,0.00602967]
[1725165677942,9.92098147,2489.9,2489.8,0.00602967]
[1725165681750,10.67438147,2489.9,2489.8,0.00602967]
[1725165685256,6.65838147,2489.9,2489.8,0.00602967]
[1725165690256,10.67438147,2489.9,2489.8,0.00602967]
[1725165690456,16.67438147,2489.9,2489.8,0.00602967]
[1725165692163,10.67438147,2489.9,2489.8,0.00602967]
[1725165692563,0.24099,2489.8,2489.7,15.3871]
[1725165692764,5.78629,2489.8,2489.7,15.3871]
[1725165693067,10.21036156,2489.8,2489.7,15.3871]
[1725165697056,8.68106156,2489.8,2489.7,15.3871]
[1725165697255,9.84106156,2489.8,2489.7,15.3871]
[1725165697463,9.60007156,2489.8,2489.7,15.3871]
[1725165699952,9.84106156,2489.8,2489.7,15.3871]
[1725165702166,9.84186156,2489.8,2489.7,15.3871]
[1725165702661,10.20736156,2489.8,2489.7,15.3871]
[1725165702862,16.20736156,2489.8,2489.7,15.3871]
[1725165704570,16.80984156,2489.8,2489.7,15.3871]
[1725165706464,10.80984156,2489.8,2489.7,15.3871]
[1725165707167,14.01764156,2489.8,2489.7,15.3871]
[1725165709370,11.88966156,2489.8,2489.7,15.3871]
[1725165709675,8.79187156,2489.8,2489.7,15.3871]
[1725165710370,8.79187156,2489.8,2489.7,16.1434]
[1725165712169,9.03286156,2489.8,2489.7,16.1434]
[1725165712573,8.79187156,2489.8,2489.7,16.1434]
[1725165714674,5.58407156,2489.8,2489.7,16.1434]
[1725165715875,0.00602967,2490.0,2489.7,20.4012]
[1725165716064,1.16602967,2490.0,2489.7,16.3844]
[1725165717071,1.16602967,2490.0,2489.7,16.1434]
[1725165717674,1.16,2489.8,2489.7,16.1434]
[1725165718067,1.16,2489.8,2489.7,20.1602]
[1725165720580,1.16,2489.8,2489.7,20.4012]
[1725165721576,1.16,2489.8,2489.7,23.609]
[1725165725074,1.16,2489.8,2489.7,20.4012]
[1725165725270,1.16602967,2490.0,2489.7,29.368]
[1725165725476,1.16602967,2490.0,2489.8,4.016]
[1725165725974,1.16602967,2490.0,2489.9,4.25698]
[1725165726169,1.16602967,2490.0,2489.9,0.24098]
[1725165726370,1.16602967,2490.0,2489.9,4.25698]
[1725165734179,0.00602967,2490.0,2489.9,4.25698]
[1725165734379,0.00602967,2490.0,2489.9,4.016]
[1725165735585,0.00602967,2490.0,2489.9,4.25698]
[1725165736585,1.16602967,2490.0,2489.8,0.24099]
[1725165736787,1.16602967,2490.0,2489.7,19.3512]
[1725165737093,1.16,2489.8,2489.7,18.9641]
[1725165737489,1.522,2489.8,2489.7,18.9641]
[1725165737796,1.522,2489.8,2489.7,18.5949]
[1725165740089,1.522,2489.8,2489.7,15.3871]
[1725165740888,1.522,2489.8,2489.7,19.4039]
[1725165741288,1.522,2489.8,2489.7,15.3871]
[1725165742295,1.522,2489.8,2489.7,19.4039]
[1725165742593,1.522,2489.8,2489.7,15.3871]
[1725165744183,1.522,2489.8,2489.7,19.4039]
[1725165745388,1.522,2489.8,2489.7,15.3871]
[1725165748403,1.522,2489.8,2489.7,15.6281]
[1725165754806,1.16602967,2490.0,2489.9,0.24098]
[1725165755608,1.53912967,2490.0,2489.9,0.24098]
[1725165762705,1.16602967,2490.0,2489.9,0.24098]
[1725165767115,1.52812967,2490.0,2489.9,0.24098]
[1725165768615,1.91422967,2490.0,2489.9,0.24098]
[1725165776615,1.91422967,2490.0,2489.8,3.81018]
[1725165778122,0.00602967,2490.0,2489.9,0.24098]
[1725165778330,0.00602967,2490.0,2489.8,7.82618]
[1725165780326,0.00602967,2490.0,2489.9,3.2078]
[1725165780824,0.00602967,2490.0,2489.9,7.2238]
[1725165783319,0.00602967,2490.0,2489.9,3.2078]
[1725165784925,0.36162967,2490.0,2489.9,3.2078]
[1725165787439,0.24099,2489.9,2489.7,15.3871]
[1725165787636,1.16,2489.8,2489.7,15.3871]
[1725165787930,1.5407,2489.8,2489.7,15.3871]
[1725165788131,1.78169,2489.8,2489.7,15.3871]
[1725165789342,1.5407,2489.8,2489.7,15.3871]
[1725165789528,9.8333913,2489.8,2489.7,15.3871]
[1725165792137,5.8165913,2489.8,2489.7,15.3871]
[1725165792340,9.8333913,2489.8,2489.7,15.3871]
[1725165792646,10.0743813,2489.8,2489.7,15.3871]
[1725165799446,5.8165913,2489.8,2489.7,15.3871]
[1725165799743,1.16,2489.8,2489.7,15.3871]
[1725165811945,5.72748068,2489.8,2489.7,15.3871]
[1725165816849,5.96847068,2489.8,2489.7,15.3871]
[1725165817544,9.98527068,2489.8,2489.7,15.3871]
[1725165841869,4.56748068,2489.8,2489.7,15.3871]
[1725165842069,7.42210572,2490.0,2489.7,16.1096]
[1725165842070,1.16,2489.9,2489.7,16.1096]
[1725165842564,4.45140581,2489.9,2489.7,19.3174]
[1725165842772,1.16602967,2490.0,2489.8,0.24098]
[1725165843165,1.16602967,2490.0,2489.9,0.3721]
[1725165843365,0.00602967,2490.0,2489.9,4.3881]
[1725165843763,1.16602967,2490.0,2489.9,4.3881]
[1725165845966,1.16602967,2490.0,2489.9,0.3721]